bitfinex-derivatives/quotes_BTCF0:USTF0_20250125
["timestamp","ask_amount","ask_price","bid_price","bid_amount"]
[1737798039217,0.81716239,104400.0,104390.0,0.00014338]
[1737798039511,0.81716239,104400.0,104390.0,1.50014338]
[1737798039907,0.81716239,104400.0,104390.0,0.00014338]
[1737798040611,0.87491788,104400.0,104390.0,0.00014338]
[1737798042512,0.81716239,104400.0,104390.0,0.00014338]
[1737798042813,0.87491788,104400.0,104390.0,0.00014338]
[1737798045304,0.153308,104380.0,104370.0,0.0631]
[1737798045508,0.57186349,104380.0,104370.0,0.0631]
[1737798045817,0.153323,104370.0,104360.0,2.08293325]
[1737798051116,0.16271106,104370.0,104360.0,2.08293325]
[1737798053324,0.16271106,104370.0,104360.0,1.5591925]
[1737798053514,0.22046655,104370.0,104360.0,1.50143701]
[1737798053709,0.16271106,104370.0,104360.0,1.5591925]
[1737798053921,0.22046655,104370.0,104360.0,1.50143701]
[1737798054122,0.58126655,104370.0,104360.0,1.50143701]
[1737798054321,0.153338,104360.0,104350.0,0.22329874]
[1737798054521,0.153338,104360.0,104350.0,0.37665074]
[1737798054715,0.153338,104360.0,104350.0,1.87665074]
[1737798059217,0.23922947,104360.0,104350.0,1.87665074]
[1737798059425,0.23922947,104360.0,104350.0,2.23745074]
[1737798059726,0.23922947,104360.0,104350.0,0.73745074]
[1737798060224,0.153338,104360.0,104350.0,2.23745074]
[1737798061826,0.153338,104360.0,104350.0,2.52425018]
[1737798064822,0.153338,104360.0,104350.0,2.23745074]
[1737798077435,0.153338,104360.0,104350.0,2.14355074]
[1737798077734,0.183738,104360.0,104350.0,2.14355074]
[1737798078236,0.26985657,104360.0,104350.0,2.43035018]
[1737798078424,0.26985657,104360.0,104350.0,2.49535018]
[1737798080935,0.26985657,104360.0,104350.0,2.43035018]
[1737798081136,0.33425657,104360.0,104350.0,2.43035018]
[1737798099551,0.44908133,104360.0,104350.0,2.7745095]
[1737798099754,0.44908133,104360.0,104350.0,2.81450082]
[1737798102157,0.29574333,104360.0,104350.0,2.81450082]
[1737798102364,0.23134333,104360.0,104350.0,2.7745095]
[1737798102558,0.23134333,104360.0,104350.0,2.90094499]
[1737798102764,0.23134333,104360.0,104350.0,2.91477263]
[1737798103063,0.23134333,104360.0,104350.0,2.97252812]
[1737798103563,0.23134333,104360.0,104350.0,2.91477263]
[1737798103965,0.23134333,104360.0,104350.0,2.97252812]
[1737798105964,0.23134333,104360.0,104350.0,2.91477263]
[1737798106562,0.0304,104360.0,104350.0,2.88757928]
[1737798112866,0.0304,104360.0,104350.0,2.85597928]
[1737798113167,0.094,104360.0,104350.0,2.85597928]
[1737798113763,0.094,104360.0,104350.0,2.88330476]
[1737798122069,0.094,104360.0,104350.0,2.85597928]
[1737798127876,0.094,104360.0,104350.0,2.78729928]
[1737798128182,0.094,104360.0,104350.0,2.85597928]
[1737798128380,0.094,104360.0,104350.0,2.78729928]
[1737798128680,0.094,104360.0,104350.0,2.85597928]
[1737798132579,0.094,104360.0,104350.0,2.78729928]
[1737798132780,0.094,104360.0,104350.0,2.85593928]
[1737798133285,0.094,104360.0,104350.0,2.78729928]
[1737798133476,0.094,104360.0,104350.0,2.85593928]
[1737798139083,0.0304,104360.0,104350.0,2.91369477]
[1737798139287,0.20094333,104370.0,104360.0,0.153338]
[1737798139483,0.20094333,104370.0,104360.0,0.66963211]
[1737798139981,0.20094333,104370.0,104360.0,2.16963211]
[1737798143190,0.08626195,104380.0,104370.0,0.153323]
[1737798143483,0.08626195,104380.0,104370.0,0.57187849]
[1737798146586,0.00014338,104380.0,104370.0,0.85859]
[1737798149682,0.15345138,104380.0,104370.0,0.85859]
[1737798150287,0.00014338,104380.0,104370.0,0.85859]
[1737798155490,0.15345138,104380.0,104370.0,0.85859]
[1737798157590,0.15345138,104380.0,104370.0,0.57187849]
[1737798162590,0.15345138,104380.0,104370.0,0.41855549]
[1737798162591,0.23956995,104380.0,104370.0,0.41855549]
[1737798162790,0.23956995,104380.0,104370.0,0.05775549]
[1737798166490,0.35439471,104380.0,104370.0,0.05775549]
[1737798170597,0.35439471,104380.0,104360.0,2.43664452]
[1737798172500,0.35439471,104380.0,104370.0,0.05775549]
[1737798172701,0.35439471,104380.0,104360.0,2.47659086]
[1737798175098,0.35439471,104380.0,104360.0,2.82075018]
[1737798177303,0.35439471,104380.0,104360.0,2.78080384]
[1737798177706,0.35439471,104380.0,104360.0,2.82075459]
[1737798179201,0.35439471,104380.0,104360.0,2.7629991]
[1737798185305,0.35439471,104380.0,104370.0,0.28671151]
[1737798188315,0.4706854,104380.0,104370.0,0.28671151]
[1737798189017,0.4706854,104380.0,104370.0,0.44003451]
[1737798189213,0.3173774,104380.0,104370.0,0.85859]
[1737798189714,0.3173774,104380.0,104370.0,2.35859]
[1737798194326,0.3173774,104380.0,104370.0,2.39039]
[1737798194520,0.3173774,104380.0,104370.0,2.42119]
[1737798195623,0.28874982,104380.0,104370.0,2.42119]
[1737798197627,0.28874982,104380.0,104370.0,2.46113443]
[1737798199325,0.28874982,104380.0,104370.0,2.42119]
[1737798199520,0.20255264,104380.0,104370.0,2.76534932]
[1737798212241,0.20255264,104380.0,104370.0,2.73454932]
[1737798215240,0.20102194,104390.0,104380.0,0.153308]
[1737798215436,0.20102194,104390.0,104380.0,0.71797447]
[1737798215735,0.15790812,104390.0,104380.0,0.75788479]
[1737798215940,0.15790812,104390.0,104380.0,2.25788479]
[1737798217838,0.15790812,104390.0,104380.0,2.2001293]
[1737798218538,0.31591147,104400.0,104380.0,2.10457679]
[1737798218737,0.31591147,104400.0,104390.0,0.64048849]
[1737798219738,0.34661147,104400.0,104390.0,0.64048849]
[1737798221438,0.34661147,104400.0,104390.0,2.14048849]
[1737798221638,0.18412238,104400.0,104390.0,2.4272]
[1737798221840,0.24982238,104400.0,104390.0,0.9272]
[1737798223048,0.24982238,104400.0,104390.0,0.93693926]
[1737798226749,0.24982238,104400.0,104390.0,0.65022775]
[1737798227856,0.24982238,104400.0,104390.0,2.15022775]
[1737798230654,0.24982238,104400.0,104390.0,2.37913139]
[1737798235673,0.24982238,104400.0,104390.0,1.86503839]
[1737798236566,0.24982238,104400.0,104390.0,2.22583839]
[1737798236974,0.25941978,104400.0,104390.0,2.22583839]
[1737798239571,0.25941978,104400.0,104390.0,2.37913139]
[1737798243479,0.25941978,104400.0,104390.0,2.36939213]
[1737798248378,0.25941978,104400.0,104390.0,2.4272]
[1737798254783,0.24982238,104400.0,104390.0,2.4272]
[1737798254982,0.00014338,104400.0,104390.0,0.9272]
[1737798255183,0.00014338,104400.0,104390.0,0.9898]
[1737798255378,0.00014338,104400.0,104390.0,2.5224]
[1737798255571,0.00014338,104400.0,104390.0,2.62008505]
[1737798255776,0.00014338,104400.0,104390.0,2.56232956]
[1737798255975,0.00014338,104400.0,104390.0,2.62008505]
[1737798258778,0.00014338,104400.0,104390.0,2.56232956]
[1737798259381,0.00014338,104400.0,104390.0,2.88095959]
[1737798260987,0.00014338,104400.0,104390.0,2.93871508]
[1737798262278,0.00014338,104400.0,104390.0,2.89878552]
[1737798262688,0.00014338,104400.0,104390.0,2.93872336]
[1737798264478,0.00014338,104400.0,104390.0,2.97951516]
[1737798266979,0.41056809,104420.0,104410.0,0.153264]
[1737798267178,0.41056809,104420.0,104410.0,0.57181949]
[1737798267384,0.41056809,104420.0,104410.0,0.97332571]
[1737798268393,0.41056809,104420.0,104410.0,2.47332571]
[1737798268893,0.41056809,104420.0,104410.0,2.5310812]
[1737798269387,0.41056809,104420.0,104410.0,2.49037498]
[1737798271592,0.0948,104420.0,104410.0,2.77668965]
[1737798275495,0.0948,104420.0,104410.0,2.49037498]
[1737798275695,0.0948,104420.0,104410.0,2.49985257]
[1737798278389,0.0303,104420.0,104410.0,0.99985257]
[1737798278987,0.0303,104420.0,104410.0,2.49985257]
[1737798283405,0.0303,104420.0,104410.0,2.78616724]
[1737798292406,0.00014338,104430.0,104420.0,0.153249]
[1737798292602,0.00014338,104430.0,104420.0,0.69815998]
[1737798293007,0.00014338,104430.0,104420.0,2.19815998]
[1737798298009,0.00014338,104430.0,104420.0,2.5423193]
[1737798300907,0.00014338,104430.0,104420.0,2.19815998]
[1737798301810,0.00014338,104430.0,104420.0,2.25591547]
[1737798302010,0.00014338,104430.0,104420.0,2.19815998]
[1737798303510,0.00014338,104430.0,104420.0,2.25591547]
[1737798303909,0.00014338,104430.0,104420.0,2.29580113]
[1737798304215,0.00014338,104430.0,104420.0,2.25591547]
[1737798305302,0.00014338,104430.0,104420.0,2.63995662]
[1737798306618,0.00014338,104430.0,104420.0,2.58220113]
[1737798307013,0.00014338,104430.0,104420.0,2.5423193]
[1737798310608,0.21691892,104430.0,104420.0,2.5423193]
[1737798311725,0.21691892,104430.0,104420.0,2.58218742]
[1737798312331,0.21691892,104430.0,104420.0,2.5423193]
[1737798315227,0.21691892,104430.0,104420.0,2.58219126]
[1737798317335,0.21691892,104430.0,104420.0,2.5423193]
[1737798318037,0.21691892,104430.0,104420.0,2.58218487]
[1737798325440,0.21691892,104430.0,104420.0,2.82872041]
[1737798331355,0.21691892,104430.0,104420.0,2.8864759]
[1737798331557,0.21691892,104430.0,104420.0,2.82872041]
[1737798332650,0.21691892,104430.0,104420.0,2.8864759]
[1737798333153,0.1464281,104440.0,104430.0,0.153235]
[1737798333353,0.31720498,104450.0,104430.0,0.54767655]
[1737798333554,0.31720498,104450.0,104440.0,0.62953098]
[1737798333747,0.31720498,104450.0,104440.0,2.16939655]
[1737798334858,0.14496784,104450.0,104440.0,2.16939655]
[1737798335556,0.14496784,104450.0,104440.0,2.12953098]
[1737798336658,0.17606784,104450.0,104440.0,2.12953098]
[1737798338356,0.17606784,104450.0,104440.0,2.13914242]
[1737798338956,0.03253689,104450.0,104440.0,2.13914242]
[1737798340252,0.18574189,104450.0,104440.0,0.13596693]
[1737798340454,0.18574189,104450.0,104440.0,0.12635549]
[1737798340857,0.18574189,104450.0,104440.0,1.62635549]
[1737798345459,0.18574189,104450.0,104440.0,1.55775549]
[1737798346053,0.27178195,104450.0,104440.0,1.55775549]
[1737798359164,0.27178195,104450.0,104440.0,1.71097549]
[1737798365264,0.27178195,104450.0,104440.0,1.55775549]
[1737798365662,0.27178195,104450.0,104440.0,1.5]
[1737798367674,0.27178195,104450.0,104440.0,1.55775549]
[1737798370765,0.27178195,104450.0,104440.0,0.05775549]
[1737798370966,0.15322,104440.0,104430.0,0.96736859]
[1737798371166,0.15322,104440.0,104430.0,1.31063405]
[1737798371369,0.15322,104440.0,104430.0,2.81063405]
[1737798372779,0.15322,104440.0,104430.0,2.74207405]
[1737798373077,0.15322,104440.0,104430.0,2.769766]
[1737798373266,0.15322,104440.0,104430.0,2.863766]
[1737798375376,0.15322,104440.0,104430.0,2.52050054]
[1737798375377,0.23926006,104440.0,104430.0,2.52050054]
[1737798376784,0.23926006,104440.0,104430.0,2.46274505]
[1737798378185,0.23926006,104440.0,104430.0,2.50267572]
[1737798379788,0.23926006,104440.0,104430.0,2.46274505]
[1737798380788,0.23926006,104440.0,104430.0,2.52050054]
[1737798381685,0.23926006,104440.0,104430.0,2.5604353]
[1737798384791,0.23926006,104440.0,104430.0,2.90370076]
[1737798385895,0.24867282,104440.0,104430.0,2.90370076]
[1737798391205,0.24867282,104440.0,104430.0,2.863766]
[1737798397312,0.24867282,104440.0,104430.0,2.90371562]
[1737798398110,0.24867282,104440.0,104430.0,2.87221562]
[1737798398310,0.28077282,104440.0,104430.0,2.84071562]
[1737798400512,0.28077282,104440.0,104430.0,1.15648762]
[1737798400701,0.31207282,104440.0,104430.0,1.15648762]
[1737798400901,0.31207282,104440.0,104430.0,2.65648762]
[1737798401804,0.42698103,104440.0,104430.0,2.65648762]
[1737798404007,0.48473652,104440.0,104430.0,2.53017213]
[1737798404210,0.90329201,104440.0,104430.0,0.62942251]
[1737798404505,0.153235,104430.0,104420.0,0.40151921]
[1737798404711,0.60439049,104430.0,104420.0,0.40151921]
[1737798406113,0.153249,104420.0,104410.0,3.24296044]
[1737798406310,0.216949,104420.0,104410.0,3.24296044]
[1737798407510,0.216949,104420.0,104410.0,2.88216044]
[1737798409422,0.27470449,104420.0,104410.0,2.88216044]
[1737798410213,0.27470449,104420.0,104410.0,1.38216044]
[1737798410618,0.27470449,104420.0,104410.0,0.22055174]
[1737798410619,0.36074455,104420.0,104410.0,0.22055174]
[1737798410820,0.36074455,104420.0,104410.0,1.72055174]
[1737798412519,0.56829555,104420.0,104400.0,0.57326707]
[1737798412721,0.153264,104410.0,104400.0,0.57326707]
[1737798412914,0.153264,104410.0,104400.0,2.07326707]
[1737798414219,0.153264,104410.0,104400.0,2.08301174]
[1737798421822,0.27447533,104420.0,104400.0,2.14076723]
[1737798422022,0.41804665,104420.0,104410.0,0.21101949]
[1737798422931,0.41804665,104420.0,104410.0,0.57181949]
[1737798423227,0.08618344,104420.0,104410.0,0.57181949]
[1737798423425,0.08618344,104420.0,104410.0,0.66851949]
[1737798425824,0.08618344,104420.0,104410.0,2.16851949]
[1737798426228,0.00014338,104420.0,104410.0,2.16851949]
[1737798430622,0.00014338,104420.0,104410.0,2.22627498]
[1737798432440,0.00014338,104420.0,104410.0,2.16851949]
[1737798435229,0.00014338,104420.0,104410.0,2.07181949]
[1737798435433,0.15339238,104420.0,104410.0,1.92936]
[1737798435632,0.27554787,104420.0,104410.0,1.92936]
[1737798435933,0.27554787,104420.0,104410.0,0.3608]
[1737798436137,0.153264,104410.0,104400.0,0.65156874]
[1737798436435,0.183864,104410.0,104400.0,2.15156874]
[1737798437037,0.183864,104410.0,104400.0,2.14182407]
[1737798438328,0.24161949,104410.0,104400.0,1.86223658]
[1737798438529,0.183864,104410.0,104400.0,1.91999207]
[1737798441357,0.26990406,104410.0,104400.0,1.91999207]
[1737798446148,0.32765955,104410.0,104400.0,1.91999207]
[1737798447148,0.26990406,104410.0,104400.0,1.91999207]
[1737798447347,0.32765955,104410.0,104400.0,1.91999207]
[1737798447542,0.26990406,104410.0,104400.0,1.55919207]
[1737798447747,0.32765955,104410.0,104400.0,1.50143658]
[1737798450548,0.32765955,104410.0,104400.0,1.5]
[1737798452047,0.44256776,104410.0,104400.0,1.5]
[1737798454639,0.80336776,104410.0,104400.0,1.5]
[1737798454839,0.153279,104400.0,104390.0,0.10377521]
[1737798455144,0.69288998,104400.0,104390.0,0.10377521]
[1737798455946,0.69288998,104400.0,104390.0,0.00014338]
[1737798457745,0.80779819,104400.0,104390.0,0.00014338]
[1737798460654,0.153308,104380.0,104370.0,0.59383299]
[1737798460853,0.21106349,104380.0,104370.0,0.59383299]
[1737798461159,0.27236349,104380.0,104370.0,0.58415103]
[1737798461454,0.27236349,104380.0,104370.0,0.64190652]
[1737798462053,0.27236349,104380.0,104370.0,0.58415103]
[1737798463049,0.27236349,104380.0,104370.0,0.51555103]
[1737798463653,0.214608,104380.0,104370.0,0.57330652]
[1737798464261,0.27236349,104380.0,104370.0,0.57330652]
[1737798465951,0.27236349,104380.0,104370.0,0.51555103]
[1737798466353,0.27236349,104380.0,104370.0,0.36223703]
[1737798468253,0.27236349,104380.0,104370.0,1.86223703]
[1737798474254,0.27236349,104380.0,104370.0,0.36223703]
[1737798477255,0.33011898,104380.0,104370.0,0.36223703]
[1737798477456,0.33011898,104380.0,104370.0,0.00143703]
[1737798477858,0.69091898,104380.0,104370.0,0.00143703]
[1737798479665,0.27236349,104380.0,104370.0,0.00143703]
[1737798479958,0.3872717,104380.0,104370.0,0.00143703]
[1737798482056,0.44502719,104380.0,104370.0,0.00143703]
[1737798484067,0.3872717,104380.0,104370.0,0.00143703]
[1737798484261,0.47332142,104380.0,104370.0,0.00143703]
[1737798487268,0.53080265,104380.0,104370.0,0.00143703]
[1737798488068,0.53080265,104380.0,104370.0,0.15476003]
[1737798491265,0.57443424,104380.0,104370.0,0.15476003]
[1737798491662,0.63218973,104380.0,104370.0,0.15476003]
[1737798491861,0.57443424,104380.0,104370.0,0.15476003]
[1737798497571,0.43090329,104380.0,104370.0,0.15476003]
[1737798497780,0.48865878,104380.0,104370.0,0.00143703]
[1737798498671,0.84945878,104380.0,104370.0,0.00143703]
[1737798500881,0.87808152,104380.0,104370.0,0.00143703]
[1737798508992,0.153323,104370.0,104360.0,2.05550804]
[1737798509598,0.21107849,104370.0,104360.0,2.05550804]
[1737798511401,0.46956908,104370.0,104360.0,2.05550804]
[1737798514406,0.41181359,104370.0,104360.0,2.05550804]
[1737798514600,0.26828264,104370.0,104360.0,2.05550804]
[1737798517711,0.26828264,104370.0,104360.0,2.02390804]
[1737798517904,0.35923813,104370.0,104360.0,0.52390804]
[1737798518295,0.30148264,104370.0,104360.0,0.52390804]
[1737798522308,0.11495964,104370.0,104360.0,0.52390804]
[1737798522514,0.11495964,104370.0,104360.0,0.61226353]
[1737798523812,0.11495964,104370.0,104360.0,2.11226353]
[1737798525008,0.11495964,104370.0,104360.0,2.17001902]
[1737798525211,0.08620334,104370.0,104360.0,2.17001902]
[1737798526315,0.08620334,104370.0,104360.0,2.11226353]
[1737798527008,0.08620334,104370.0,104360.0,2.17001902]
[1737798527408,0.08620334,104370.0,104360.0,2.11226353]
[1737798527713,0.08620334,104370.0,104360.0,2.15227441]
[1737798527919,0.08620334,104370.0,104360.0,2.2100299]
[1737798528220,0.08620334,104370.0,104360.0,2.17001902]
[1737798528813,0.08620334,104370.0,104360.0,0.67001902]
[1737798529409,0.08620334,104370.0,104360.0,2.17001902]
[1737798529813,0.14367433,104390.0,104380.0,0.153308]
[1737798530012,0.14367433,104390.0,104380.0,0.57186349]
[1737798531415,0.20142982,104390.0,104380.0,0.57186349]
[1737798532430,0.20142982,104390.0,104380.0,0.514108]
[1737798533326,0.05789887,104390.0,104380.0,0.514108]
[1737798534918,0.00014338,104390.0,104380.0,0.57186349]
[1737798535128,0.00014338,104390.0,104380.0,2.07186349]
[1737798536623,0.00014338,104390.0,104380.0,2.08127147]
[1737798539427,0.15343638,104390.0,104380.0,2.08127147]
[1737798539920,0.15343638,104390.0,104380.0,2.07186349]
[1737798540321,0.15343638,104390.0,104380.0,0.514108]
[1737798540632,0.15343638,104390.0,104370.0,0.64047649]
[1737798540633,0.57199187,104390.0,104370.0,0.64047649]
[1737798540926,0.57199187,104390.0,104370.0,2.14047649]
[1737798542034,0.21119187,104390.0,104370.0,2.14047649]
[1737798543641,0.05775549,104380.0,104370.0,2.014121]
[1737798543832,0.30376349,104380.0,104370.0,2.014121]
[1737798544029,0.246008,104380.0,104370.0,2.014121]
[1737798544228,0.246008,104380.0,104370.0,2.07187649]
[1737798544541,0.246008,104380.0,104370.0,2.08147094]
[1737798544739,0.30376349,104380.0,104370.0,2.02371545]
[1737798547238,0.30376349,104380.0,104370.0,1.87039445]
[1737798547540,0.30376349,104380.0,104370.0,1.50959445]
[1737798547933,0.66456349,104380.0,104370.0,1.50959445]
[1737798550036,0.606808,104380.0,104370.0,1.50959445]
[1737798550243,0.606808,104380.0,104370.0,1.66291745]
[1737798552653,0.66456349,104380.0,104370.0,1.66291745]
[1737798553848,0.80809444,104380.0,104370.0,1.66291745]
[1737798556845,0.80809444,104380.0,104370.0,0.16291745]
[1737798557051,0.86584993,104380.0,104370.0,0.16291745]
[1737798557459,0.80809444,104380.0,104370.0,0.16291745]
[1737798557757,0.80809444,104380.0,104370.0,0.153323]
[1737798558563,0.86584993,104380.0,104370.0,0.153323]
[1737798558862,0.80809444,104380.0,104370.0,0.153323]
[1737798560455,0.66456349,104380.0,104370.0,0.153323]
[1737798562362,0.153323,104370.0,104360.0,2.14998929]
[1737798562959,0.21107849,104370.0,104360.0,2.14998929]
[1737798563165,0.21107849,104370.0,104360.0,2.0922338]
[1737798563357,0.21107849,104370.0,104360.0,2.0236338]
[1737798564153,0.21107849,104370.0,104360.0,1.8703008]
[1737798567653,0.22048374,104370.0,104360.0,1.8703008]
[1737798575468,0.153323,104370.0,104360.0,2.08139329]
[1737798575866,0.153323,104370.0,104360.0,2.11329329]
[1737798581165,0.89088509,104380.0,104360.0,2.17104878]
[1737798581365,0.89088509,104380.0,104370.0,0.05775549]
[1737798581571,0.89088509,104380.0,104360.0,2.11329329]
[1737798581572,0.94864058,104380.0,104360.0,2.11329329]
[1737798582674,0.153323,104370.0,104360.0,2.11329329]
[1737798586678,0.153323,104370.0,104360.0,2.0555378]
[1737798587772,0.21107849,104370.0,104360.0,2.0555378]
[1737798588778,0.153323,104370.0,104360.0,2.0555378]
[1737798591285,0.26829188,104370.0,104360.0,2.0555378]
[1737798593988,0.26829188,104370.0,104360.0,0.5236378]
[1737798594179,0.32604737,104370.0,104360.0,0.5236378]
[1737798594983,0.68684737,104370.0,104360.0,0.0095008]
[1737798596285,0.68684737,104370.0,104360.0,0.00014338]
[1737798597794,0.71540944,104370.0,104360.0,0.00014338]
[1737798599993,0.71540944,104370.0,104360.0,1.50014338]
[1737798600295,0.72483956,104370.0,104360.0,1.50014338]
[1737798602182,0.72483956,104370.0,104360.0,0.00014338]
[1737798602387,0.153337,104360.0,104350.0,0.16280777]
[1737798602589,0.30629249,104360.0,104350.0,0.16280777]
[1737798602798,0.30629249,104360.0,104350.0,1.66280777]
[1737798605296,0.42115129,104360.0,104350.0,1.50945977]
[1737798605501,0.42115129,104360.0,104350.0,1.5]
[1737798605502,0.83970678,104360.0,104350.0,1.5]
[1737798606000,0.153352,104350.0,104340.0,0.51430138]
[1737798606200,0.21110749,104350.0,104340.0,0.51430138]
[1737798606402,0.21110749,104350.0,104340.0,2.01430138]
[1737798608299,0.21110749,104350.0,104340.0,1.87037091]
[1737798610203,0.21110749,104350.0,104340.0,1.86094338]
[1737798611304,0.22049077,104350.0,104340.0,1.86094338]
[1737798617719,0.58129077,104350.0,104340.0,1.50014338]
[1737798620623,0.58129077,104350.0,104340.0,0.00014338]
[1737798623727,0.69614957,104350.0,104340.0,0.00014338]
[1737798627829,0.2682108,104350.0,104340.0,0.57206587]
[1737798628218,0.2682108,104350.0,104340.0,0.60506587]
[1737798629629,0.2682108,104350.0,104340.0,0.54731038]
[1737798633124,0.2682108,104350.0,104340.0,0.60506587]
[1737798633325,0.2682108,104350.0,104340.0,0.54731038]
[1737798634031,0.2682108,104350.0,104340.0,2.04731038]
[1737798634631,0.2682108,104350.0,104340.0,2.10506587]
[1737798635233,0.1148588,104350.0,104340.0,2.16282136]
[1737798635836,0.1148588,104350.0,104340.0,2.23142136]
[1737798637734,0.41173175,104360.0,104340.0,2.07805436]
[1737798637940,0.41173175,104360.0,104350.0,0.21110749]
[1737798645038,0.41173175,104360.0,104350.0,0.22083064]
[1737798646129,0.50703175,104360.0,104350.0,0.16307515]
[1737798646845,0.50703175,104360.0,104350.0,0.22083064]
[1737798647139,0.3635008,104360.0,104350.0,0.22083064]
[1737798650242,0.44964602,104360.0,104350.0,0.22083064]
[1737798657446,0.153352,104350.0,104340.0,1.50014338]
[1737798657646,0.57190749,104350.0,104340.0,1.50014338]
[1737798658038,0.514152,104350.0,104340.0,1.55789887]
[1737798658244,0.153352,104350.0,104340.0,1.50014338]
[1737798658445,0.153352,104350.0,104340.0,1.55789887]
[1737798661253,0.2682108,104350.0,104340.0,1.55789887]
[1737798662256,0.2682108,104350.0,104340.0,1.50014338]
[1737798662759,0.2780124,104350.0,104340.0,1.50014338]
[1737798663747,0.2780124,104350.0,104340.0,0.00014338]
[1737798666851,0.33576789,104350.0,104340.0,0.00014338]
[1737798671160,0.51887646,104350.0,104340.0,0.00014338]
[1737798672457,0.46112097,104350.0,104340.0,0.00014338]
[1737798673054,0.54727801,104350.0,104340.0,0.00014338]
[1737798676266,0.46112097,104350.0,104340.0,0.00014338]
[1737798677358,0.51887646,104350.0,104340.0,0.00014338]
[1737798679965,0.51887646,104350.0,104330.0,0.59486588]
[1737798680166,0.0925,104340.0,104330.0,0.59486588]
[1737798680661,0.245867,104340.0,104330.0,0.59486588]
[1737798683771,0.33203758,104340.0,104330.0,0.59486588]
[1737798684367,0.33203758,104340.0,104330.0,0.63486871]
[1737798690873,0.44689638,104340.0,104330.0,0.63486871]
[1737798695372,0.20102938,104340.0,104330.0,0.6926242]
[1737798695672,0.20102938,104340.0,104330.0,0.7534242]
[1737798695872,0.20102938,104340.0,104330.0,2.2534242]
[1737798696872,0.20102938,104340.0,104330.0,2.25198676]
[1737798697665,0.26942253,104350.0,104340.0,0.153367]
[1737798697860,0.26942253,104350.0,104340.0,0.70218081]
[1737798700372,0.26942253,104350.0,104340.0,0.77166081]
[1737798700766,0.26942253,104350.0,104340.0,0.70218081]
[1737798700966,0.18325195,104350.0,104340.0,0.77166081]
[1737798701166,0.18325195,104350.0,104340.0,0.73165798]
[1737798702966,0.18325195,104350.0,104340.0,0.77162632]
[1737798704671,0.18325195,104350.0,104340.0,0.82938181]
[1737798704976,0.18325195,104350.0,104340.0,0.78941347]
[1737798705278,0.18325195,104350.0,104340.0,2.27161783]
[1737798705977,0.18325195,104350.0,104340.0,2.32937332]
[1737798706370,0.18325195,104350.0,104340.0,2.27161783]
[1737798710479,0.18325195,104350.0,104340.0,2.27149783]
[1737798713782,0.18325195,104350.0,104340.0,2.32925332]
[1737798714079,0.18325195,104350.0,104340.0,2.27149783]
[1737798718379,0.18325195,104350.0,104340.0,2.32925332]
[1737798718778,0.18325195,104350.0,104340.0,2.27149783]
[1737798719980,0.18325195,104350.0,104340.0,2.16963783]
[1737798720185,0.18325195,104350.0,104340.0,2.23887783]
[1737798721887,0.27915195,104350.0,104340.0,2.23887783]
[1737798722287,0.27915195,104350.0,104340.0,2.16963783]
[1737798722588,0.27915195,104350.0,104340.0,2.23887783]
[1737798726892,0.27915195,104350.0,104340.0,2.23883783]
[1737798727593,0.09604338,104350.0,104340.0,2.23883783]
[1737798732883,0.29361302,104350.0,104340.0,2.23883783]
[1737798734493,0.44696502,104350.0,104340.0,1.95851534]
[1737798734702,0.44696502,104350.0,104340.0,0.45851534]
[1737798734894,0.44696502,104350.0,104340.0,0.41855549]
[1737798735089,0.44696502,104350.0,104340.0,1.91855549]
[1737798737394,0.56182382,104350.0,104340.0,1.91855549]
[1737798740605,0.64793422,104350.0,104340.0,1.91855549]
[1737798740994,0.71531756,104350.0,104340.0,1.8608]
[1737798743802,0.62920716,104350.0,104340.0,1.8608]
[1737798751004,0.71523888,104350.0,104340.0,1.8608]
[1737798753413,0.153367,104340.0,104330.0,0.42999738]
[1737798753707,0.21112249,104340.0,104330.0,0.36087738]
[1737798753902,0.21112249,104340.0,104330.0,1.86087738]
[1737798755004,0.21112249,104340.0,104330.0,1.91863287]
[1737798755411,0.21112249,104340.0,104330.0,1.86087738]
[1737798758199,0.29715421,104340.0,104330.0,1.86087738]
[1737798761415,0.41201301,104340.0,104330.0,1.86087738]
[1737798765108,0.4697685,104340.0,104330.0,1.86087738]
[1737798765510,0.41201301,104340.0,104330.0,1.86087738]
[1737798767014,0.4697685,104340.0,104330.0,1.86087738]
[1737798769919,0.41201301,104340.0,104330.0,1.86087738]
[1737798772227,0.32598129,104340.0,104330.0,1.86087738]
[1737798772724,0.32598129,104340.0,104330.0,0.36087738]
[1737798773425,0.32598129,104340.0,104330.0,1.86087738]
[1737798773821,0.32598129,104340.0,104330.0,0.36087738]
[1737798774325,0.32598129,104340.0,104330.0,1.86087738]
[1737798780728,0.32598129,104340.0,104330.0,0.36087738]
[1737798780927,0.2682258,104340.0,104330.0,0.36087738]
[1737798781425,0.2682258,104340.0,104330.0,1.86087738]
[1737798784123,0.2682258,104340.0,104330.0,0.36087738]
[1737798784633,0.2682258,104340.0,104330.0,0.57201387]
[1737798784817,0.2682258,104340.0,104330.0,0.66611387]
[1737798785222,0.41175675,104340.0,104330.0,0.66611387]
[1737798787737,0.2682258,104340.0,104330.0,0.66611387]
[1737798790132,0.2682258,104340.0,104330.0,2.16611387]
[1737798791436,0.35443321,104340.0,104330.0,2.16611387]
[1737798793024,0.59340724,104340.0,104330.0,2.16611387]
[1737798793222,0.44004024,104340.0,104330.0,2.58466936]
[1737798793626,0.44004024,104340.0,104330.0,2.62469588]
[1737798794929,0.44004024,104340.0,104330.0,1.12469588]
[1737798795637,0.44004024,104340.0,104330.0,2.62469588]
[1737798796927,0.23897403,104340.0,104330.0,2.62469588]
[1737798805034,0.23897403,104340.0,104330.0,2.56694039]
[1737798806141,0.23897403,104340.0,104330.0,2.62469588]
[1737798806347,0.23897403,104340.0,104330.0,2.56694039]
[1737798807038,0.23897403,104340.0,104330.0,2.62469588]
[1737798807241,0.23897403,104340.0,104330.0,2.56694039]
[1737798807440,0.23897403,104340.0,104330.0,2.62469588]
[1737798811645,0.03174338,104350.0,104340.0,0.153366]
[1737798811845,0.03174338,104350.0,104340.0,0.62967698]
[1737798813748,0.03174338,104350.0,104340.0,2.16963222]
[1737798819753,0.0639,104360.0,104340.0,2.22738771]
[1737798819947,0.0639,104360.0,104350.0,0.69854298]
[1737798820462,0.0639,104360.0,104350.0,2.19854298]
[1737798820856,0.0639,104360.0,104350.0,2.23848903]
[1737798832368,0.0639,104360.0,104350.0,0.73848903]
[1737798832566,0.0639,104360.0,104350.0,0.68073354]
[1737798832767,0.0639,104360.0,104350.0,0.73848903]
[1737798833067,0.0639,104360.0,104350.0,2.18073354]
[1737798835360,0.0639,104360.0,104350.0,2.14078749]
[1737798835971,0.0639,104360.0,104350.0,2.19854298]
[1737798839462,0.0639,104360.0,104350.0,2.23848081]
[1737798841368,0.0639,104360.0,104350.0,0.73848081]
[1737798841873,0.0639,104360.0,104350.0,2.23848081]
[1737798844173,0.0328,104360.0,104350.0,2.23848081]